bitfinex/quotes_SOLUSD_20260226
["timestamp","ask_amount","ask_price","bid_price","bid_amount"]
[1772085978611,0.85599595,87.849,87.821,0.8586045]
[1772085978990,12.23795456,87.859,87.831,0.8586045]
[1772085979502,0.85599595,87.858,87.831,0.8586045]
[1772085980516,0.85599595,87.856,87.831,0.8586045]
[1772085981833,11.38239144,87.855,87.831,0.8586045]
[1772085982108,0.85599595,87.854,87.823,0.8586045]
[1772085982811,0.85599595,87.849,87.815,0.8586045]
[1772085984320,0.85599595,87.829,87.79,9.61144254]
[1772085984499,0.85599595,87.829,87.79,10.47004704]
[1772085984810,0.85599595,87.829,87.791,0.8586045]
[1772085985397,0.85599595,87.839,87.801,0.8586045]
[1772085986400,11.38459436,87.838,87.802,11.3892622]
[1772085986609,0.83936866,87.837,87.803,0.88138556]
[1772085988922,0.83936866,87.829,87.803,0.88138556]
[1772085989099,0.83936866,87.829,87.792,0.88138556]
[1772085989415,0.83936866,87.829,87.793,0.88138556]
[1772085989615,0.83936866,87.829,87.801,0.88138556]
[1772085991524,0.83936866,87.829,87.762,62.2]
[1772085991525,11.38350847,87.847,87.811,0.88138556]
[1772085991818,0.83936866,87.846,87.821,0.88138556]
[1772085995626,11.38368717,87.845,87.821,0.88138556]
[1772085995824,0.83936866,87.846,87.821,12.26807558]
[1772085996133,0.83936866,87.846,87.822,0.83352332]
[1772085996320,12.22300277,87.846,87.822,0.83352332]
[1772085997931,0.83936866,87.846,87.822,0.83352332]
[1772085998129,0.88717488,87.854,87.824,0.83352332]
[1772085999614,0.88717488,87.873,87.831,0.83352332]
[1772085999814,12.26736424,87.872,87.831,0.83352332]
[1772086000047,0.88717488,87.871,87.833,0.83352332]
[1772086000962,0.88717488,87.869,87.833,0.83352332]
[1772086005437,0.88717488,87.867,87.833,0.83352332]
[1772086005928,0.88717488,87.867,87.835,0.83352332]
[1772086006512,0.88717488,87.867,87.84,3.58998227]
[1772086006835,0.88717488,87.867,87.841,0.83352332]
[1772086007034,3.58998227,87.87,87.841,0.83352332]
[1772086007231,0.88717488,87.878,87.851,0.83352332]
[1772086007726,0.88717488,87.878,87.86,4.42350559]
[1772086007914,0.88717488,87.887,87.861,0.83352332]
[1772086009314,0.88717488,87.885,87.861,0.83352332]
[1772086011341,0.88717488,87.885,87.8,3.58543211]
[1772086011342,11.37709313,87.896,87.871,0.83352332]
[1772086011837,11.37652946,87.901,87.871,0.83352332]
[1772086012723,0.88717488,87.9,87.871,0.83352332]
[1772086012932,4.47260699,87.9,87.871,0.83352332]
[1772086013117,0.88717488,87.899,87.871,0.83352332]
[1772086015117,0.88717488,87.899,87.873,0.83352332]
[1772086015339,3.58543211,87.9,87.873,0.83352332]
[1772086015340,12.26399801,87.898,87.873,0.83352332]
[1772086015638,0.88717488,87.897,87.873,0.83352332]
[1772086017324,0.84804724,87.895,87.873,0.83352332]
[1772086019024,0.1,87.92,87.881,0.83618292]
[1772086019341,0.84804724,87.918,87.89,4.42161503]
[1772086020332,0.84804724,87.918,87.88,3.58543211]
[1772086020548,0.84804724,87.918,87.84,3.58543211]
[1772086020549,0.84804724,87.899,87.869,3.69383402]
[1772086020752,0.84804724,87.899,87.866,12.21703497]
[1772086021046,0.84804724,87.899,87.867,0.83618292]
[1772086021552,0.84804724,87.897,87.867,0.83618292]
[1772086021928,0.84804724,87.897,87.869,0.83618292]
[1772086023546,0.84804724,87.897,87.868,11.38070742]
[1772086023547,3.58543211,87.9,87.871,0.83618292]
[1772086024559,0.84804724,87.898,87.86,3.58543211]
[1772086024847,0.84804724,87.889,87.861,0.83618292]
[1772086025653,12.22616484,87.888,87.861,0.83618292]
[1772086025830,0.84804724,87.887,87.861,0.83618292]
[1772086026230,0.84804724,87.869,87.831,0.83618292]
[1772086026442,3.58543211,87.86,87.831,0.83618292]
[1772086026643,4.43347935,87.87,87.831,0.83618292]
[1772086026830,0.84804724,87.869,87.831,0.83618292]
[1772086027643,0.84804724,87.867,87.833,0.83618292]
[1772086029965,0.84804724,87.867,87.835,0.83618292]
[1772086031245,0.84804724,87.874,87.841,0.83618292]
[1772086031556,0.84804724,87.879,87.841,0.83618292]
[1772086032134,0.84804724,87.877,87.843,0.83618292]
[1772086035863,0.84804724,87.877,87.845,0.83618292]
[1772086036844,0.84804724,87.875,87.845,0.83618292]
[1772086038450,0.84804724,87.917,87.848,0.83618292]
[1772086038675,0.84804724,87.917,87.88,3.58543211]
[1772086038970,0.84804724,87.899,87.861,0.83618292]
[1772086039655,3.68543211,87.92,87.861,0.83618292]
[1772086039656,0.84804724,87.889,87.861,0.83618292]
[1772086040660,0.84804724,87.889,87.863,0.83618292]
[1772086040962,0.84804724,87.899,87.871,0.83618292]
[1772086041663,0.84804724,87.899,87.862,11.3814846]
[1772086041664,0.84804724,87.919,87.891,0.83618292]
[1772086041957,0.84804724,87.918,87.884,0.83618292]
[1772086042759,0.84804724,87.918,87.886,0.83618292]
[1772086043339,0.84804724,87.918,87.89,3.58543211]
[1772086043561,0.84804724,87.918,87.891,0.83618292]
[1772086044273,0.84804724,87.918,87.892,0.83618292]
[1772086045560,11.37436445,87.917,87.892,0.83618292]
[1772086045762,0.1,87.92,87.893,0.83618292]
[1772086046266,0.1,87.92,87.903,0.83103905]
[1772086046961,0.1,87.94,87.911,0.83103905]
[1772086047166,0.80508628,87.958,87.931,0.83103905]
[1772086047548,0.1,87.96,87.931,0.83103905]
[1772086047748,0.1,87.97,87.941,0.83103905]
[1772086047949,0.1,87.97,87.923,3.69383402]
[1772086047950,0.1,87.97,87.961,0.83103905]
[1772086048369,0.92442808,88.011,87.965,0.83103905]
[1772086048570,0.80508628,88.008,87.971,0.83103905]
[1772086048748,0.1193418,88.011,87.991,0.83103905]
[1772086049668,11.36247429,88.009,87.981,0.83103905]
[1772086049877,0.80508628,87.999,87.961,11.36867475]
[1772086050174,0.80508628,88.008,87.961,11.36867475]
[1772086050378,0.80508628,88.008,87.971,11.36738243]
[1772086050783,0.80508628,88.006,87.96,3.58543211]
[1772086051385,0.80508628,87.999,87.96,3.58543211]
[1772086051683,0.80508628,88.001,87.97,3.58543211]
[1772086051887,0.80508628,88.001,87.971,0.83103905]
[1772086052378,11.36363636,88.0,87.971,0.83103905]
[1772086052689,0.80508628,87.999,87.971,0.83103905]
[1772086053181,0.80508628,88.007,87.973,0.83103905]
[1772086053564,3.68543211,88.01,87.981,0.79066791]
[1772086053565,0.1,88.01,87.981,0.79066791]
[1772086055487,0.1,88.01,87.96,32.00733065]
[1772086055488,0.84561861,88.009,87.973,0.79066791]
[1772086056771,0.1,88.02,88.001,0.79066791]
[1772086056969,0.1,88.02,88.0,3.58543211]
[1772086057200,0.94561861,88.02,87.993,0.79066791]
[1772086057385,3.68543211,88.03,87.976,3.69383402]
[1772086057386,0.1,88.03,88.011,0.79066791]
[1772086057781,0.84561861,88.028,87.994,0.79066791]
[1772086058175,0.84561861,88.028,87.99,3.58543211]
[1772086058686,0.84561861,88.028,87.99,4.37610002]
[1772086058868,0.84561861,88.026,87.99,4.37610002]
[1772086059068,0.84561861,88.026,88.0,3.58543211]
[1772086059268,0.1,88.03,88.01,3.58543211]
[1772086059791,0.1,88.03,88.011,0.79066791]
[1772086060198,0.84561861,88.029,88.0,3.58543211]
[1772086060495,0.1,88.03,88.0,3.58543211]
[1772086060496,0.1,88.03,88.001,0.79066791]
[1772086061093,0.84561861,88.029,87.993,0.79066791]
[1772086061471,0.84561861,88.029,88.0,3.58543211]
[1772086061672,0.1,88.03,88.01,3.58543211]
[1772086063085,0.84561861,88.029,88.0,3.58543211]
[1772086063976,0.84561861,88.019,87.983,0.79066791]
[1772086064175,0.84561861,88.019,87.984,12.15637076]
[1772086064489,0.1,88.03,88.01,3.58543211]
[1772086064693,0.84561861,88.047,88.02,3.58543211]
[1772086064990,0.84561861,88.047,88.03,3.58543211]
[1772086065197,12.20327663,88.047,88.02,4.37610002]
[1772086065502,11.35666749,88.054,88.021,0.79066791]
[1772086065677,0.84561861,88.053,88.02,3.58543211]
[1772086065883,0.84561861,88.049,88.013,0.79066791]
[1772086066072,0.84561861,88.049,88.02,4.37610002]
[1772086066269,19.32042629,88.066,88.04,3.58543211]
[1772086066467,28.37637672,88.102,88.04,3.58543211]
[1772086066468,0.94561861,88.11,88.061,0.79066791]
[1772086066673,12.29513166,88.11,88.08,3.58543211]
[1772086067085,0.84561861,88.109,88.08,3.58543211]
[1772086067272,0.84561861,88.108,88.08,9.55469874]
[1772086069092,0.1,88.11,88.1,9.55469874]
[1772086069308,0.1,88.11,88.08,9.55469874]
[1772086069309,0.84561861,88.109,88.08,9.55469874]
[1772086069798,0.1,88.11,88.09,9.55469874]
[1772086070002,0.84561861,88.108,88.08,9.55469874]
[1772086070183,0.84561861,88.108,88.07,9.55469874]
[1772086070376,0.84561861,88.139,88.091,0.79066791]
[1772086070577,11.34578513,88.139,88.111,0.79066791]
[1772086070792,0.84561861,88.149,88.111,0.79066791]
[1772086070793,11.34490129,88.146,88.13,9.55469874]
[1772086071097,11.3450717,88.144,88.12,9.55469874]
[1772086071304,11.3450717,88.144,88.12,9.54643217]
[1772086071497,11.34365606,88.155,88.13,9.54643217]
[1772086071682,0.84561861,88.154,88.12,9.54643217]
[1772086072280,0.84561861,88.139,88.11,9.54643217]
[1772086072477,0.84561861,88.139,88.1,0.79066791]
[1772086072697,0.84561861,88.139,88.1,10.33710008]
[1772086072902,0.84561861,88.139,88.101,0.79066791]
[1772086073100,0.84561861,88.139,88.11,9.54643217]
[1772086073306,0.84561861,88.137,88.11,9.54643217]
[1772086074003,0.84561861,88.137,88.101,0.79066791]
[1772086074903,0.84561861,88.137,88.11,9.54643217]
[1772086075207,0.84561861,88.135,88.101,0.79066791]
[1772086075383,0.84561861,88.129,88.09,9.54643217]
[1772086075699,0.84561861,88.119,88.084,0.79066791]
[1772086077217,0.83243288,88.117,88.084,0.79066791]
[1772086077499,11.34841916,88.118,88.065,0.85396316]
[1772086077500,0.83243288,88.109,88.065,0.85396316]
[1772086077696,0.83243288,88.109,88.07,9.54643217]
[1772086077895,0.83243288,88.109,88.08,9.54643217]
[1772086078992,0.83243288,88.089,88.05,9.54643217]
[1772086079386,0.83243288,88.087,88.05,9.54643217]
[1772086079597,0.83243288,88.087,88.05,10.40039533]
[1772086079804,0.83243288,88.087,88.051,0.85396316]
[1772086080309,0.83243288,88.079,88.04,9.54643217]
[1772086080607,0.83243288,88.069,88.04,9.54643217]
[1772086080785,0.83243288,88.069,88.03,11.35963672]
[1772086080786,0.83243288,88.069,88.03,10.40039533]
[1772086081101,0.83243288,88.049,88.021,0.85396316]
[1772086081293,0.83243288,88.049,88.03,9.54643217]
[1772086081498,11.35744139,88.048,88.021,0.85396316]
[1772086081692,12.18987427,88.048,88.021,0.85396316]
[1772086081893,0.83243288,88.059,88.021,0.85396316]
[1772086082686,0.83243288,88.059,88.031,0.85396316]
[1772086083105,0.83243288,88.059,88.03,9.54643217]
[1772086083302,45.4029679,88.1,88.031,0.85396316]
[1772086083518,10.37886505,88.07,88.04,9.54643217]
[1772086083690,10.37886505,88.07,88.033,0.85396316]
[1772086083691,0.83243288,88.07,88.033,0.85396316]
[1772086084005,10.37886505,88.07,88.04,9.54643217]
[1772086084191,10.37886505,88.07,88.041,0.85396316]
[1772086084788,0.83243288,88.069,88.041,0.85396316]
[1772086086009,11.35486215,88.068,88.041,0.85396316]
[1772086086188,12.18729503,88.068,88.041,0.85396316]
[1772086086507,9.54643217,88.06,88.024,0.85396316]
[1772086086713,0.83243288,88.059,88.024,0.85396316]
[1772086087392,39.74201752,88.068,88.02,9.54643217]
[1772086087393,0.83243288,88.049,88.02,9.54643217]
[1772086087592,0.83243288,88.049,88.02,10.40039533]
[1772086087995,0.83243288,88.049,88.02,0.85396316]
[1772086088489,0.83243288,88.039,88.011,0.85396316]
[1772086089124,0.83243288,88.019,87.966,0.85396316]
[1772086089413,0.83243288,88.019,87.99,9.54643217]
[1772086089792,0.83243288,88.033,88.001,0.85396316]
[1772086090005,0.83243288,88.047,88.02,9.54643217]
[1772086090309,0.83243288,88.057,88.03,9.54643217]
[1772086091097,11.35553827,88.063,88.04,9.54643217]
[1772086091411,0.83243288,88.066,88.05,9.54643217]
[1772086092716,0.83243288,88.075,88.05,9.54643217]
[1772086093091,0.83243288,88.084,88.06,9.54643217]
[1772086093512,0.83243288,88.083,88.06,9.54643217]
[1772086093907,0.83243288,88.083,88.05,9.54643217]
[1772086095412,0.83243288,88.083,88.06,9.54643217]
[1772086096919,11.35178802,88.092,88.06,9.54643217]
[1772086097405,12.1842209,88.092,88.061,0.85396316]
[1772086097724,0.83243288,88.091,88.05,9.54643217]
[1772086097891,0.83243288,88.089,88.051,11.35705443]
[1772086098297,0.83243288,88.089,88.06,9.54643217]
[1772086098798,0.83243288,88.089,88.051,0.85396316]
[1772086098996,0.83243288,88.079,88.04,9.54643217]
[1772086099298,0.83243288,88.079,88.041,0.85396316]
[1772086099699,0.83243288,88.077,88.05,9.54643217]
[1772086099894,0.83243288,88.077,88.041,0.85396316]
[1772086100291,0.83243288,88.077,88.05,9.54643217]
[1772086101416,0.83243288,88.077,88.043,0.85396316]
[1772086101923,0.83243288,88.075,88.043,0.85396316]
[1772086103529,0.83243288,88.069,88.03,9.54643217]
[1772086103722,0.83243288,88.059,88.024,0.85396316]
[1772086103906,9.54643217,88.06,88.024,0.85396316]
[1772086103907,0.83243288,88.057,88.024,0.85396316]
[1772086104419,11.35615162,88.058,88.016,0.85396316]
[1772086104420,0.83243288,88.049,88.016,0.85396316]
[1772086104622,0.83243288,88.029,88.0,9.54643217]
[1772086104826,0.83243288,88.037,88.007,0.85396316]
[1772086105132,0.83243288,88.049,88.011,0.85396316]
[1772086105309,0.83243288,88.049,88.02,10.40039533]
[1772086105800,11.35744139,88.048,88.02,0.85396316]
[1772086106005,0.77708942,88.047,88.011,0.75788635]
[1772086106423,0.77708942,88.016,87.921,0.75788635]
[1772086106611,9.54643217,87.95,87.921,0.75788635]
[1772086106922,0.77708942,87.929,87.9,5.93533097]
[1772086107102,9.54643217,87.92,87.9,5.93533097]
[1772086107302,9.54643217,87.94,87.901,11.37643485]
[1772086107521,9.54643217,87.95,87.91,9.54643217]
[1772086107906,9.54643217,87.94,87.911,11.37514076]
[1772086108307,0.77708942,87.939,87.905,11.3758588]
[1772086108521,0.77708942,87.929,87.9,5.93533097]
[1772086109229,0.77708942,87.929,87.894,0.30649329]
[1772086109428,0.77708942,87.929,87.896,3.69383402]
[1772086110243,9.54643217,87.92,87.896,3.69383402]
[1772086110529,9.54643217,87.92,87.897,11.37695256]
[1772086110709,11.37294149,87.928,87.898,0.30541001]
[1772086110907,12.15003091,87.928,87.897,11.37695256]
[1772086111108,9.54643217,87.92,87.894,3.69383402]
[1772086111519,9.54643217,87.92,87.894,15.0711749]
[1772086111917,12.15003091,87.928,87.894,15.0711749]
[1772086112621,0.77708942,87.927,87.894,15.0711749]
[1772086112826,9.54643217,87.94,87.911,0.3022176]
[1772086113029,11.37057936,87.947,87.911,0.3022176]
[1772086113238,9.54643217,87.94,87.911,0.3022176]
[1772086113710,0.77708942,87.939,87.9,9.84864977]
[1772086114109,0.77708942,87.939,87.901,0.30014295]
[1772086117740,0.79633904,87.946,87.91,9.54643217]
[1772086117917,9.54643217,87.94,87.903,0.29712256]
[1772086118830,0.79633904,87.939,87.903,0.29712256]
[1772086120035,9.54643217,87.94,87.911,0.29423495]
[1772086121029,0.79633904,87.939,87.911,0.29423495]
[1772086121930,0.79633904,87.939,87.912,11.37501137]
[1772086124537,0.79633904,87.939,87.912,0.29050096]
[1772086124734,12.1669184,87.947,87.912,0.29050096]
[1772086124937,9.54643217,87.96,87.931,0.28959303]
[1772086125318,0.79633904,87.959,87.931,0.28959303]
[1772086125516,9.54643217,87.95,87.914,0.28959303]
[1772086126333,10.34277121,87.95,87.914,0.28959303]
[1772086126925,0.79633904,87.949,87.918,3.69383402]
[1772086127117,0.79633904,87.949,87.918,3.98164142]
[1772086128046,0.79633904,87.949,87.92,9.83335552]
[1772086128347,0.79633904,87.949,87.92,9.54643217]
[1772086128565,0.79633904,87.949,87.92,9.83335552]
[1772086128842,0.79633904,87.949,87.921,0.28692335]
[1772086130239,0.79633904,87.959,87.923,0.28520869]
[1772086132647,10.34277121,87.98,87.941,0.28351756]
[1772086132829,0.79633904,87.979,87.941,0.28351756]
[1772086133137,0.79633904,87.978,87.941,0.28351756]
[1772086133724,0.79633904,87.959,87.924,11.65615474]
[1772086133927,0.79633904,87.959,87.925,0.28188812]
[1772086135254,0.79633904,87.958,87.926,11.37320019]
[1772086136141,0.79633904,87.958,87.926,11.65261268]
[1772086137042,0.79633904,87.958,87.921,11.37373865]
[1772086137241,9.58585335,87.96,87.921,11.37373865]
[1772086137242,0.81148976,87.956,87.921,11.37373865]
[1772086137436,0.81148976,87.956,87.921,11.65233091]
[1772086137647,11.36858549,87.962,87.931,0.27859226]
[1772086137944,0.81148976,87.961,87.931,0.27859226]
[1772086139533,0.81148976,87.969,87.933,0.27697571]
[1772086140438,0.81148976,87.969,87.934,11.37216548]
[1772086140625,0.81148976,87.987,87.951,0.27617957]
[1772086141028,0.81148976,87.979,87.944,0.27539232]
[1772086141255,0.81148976,87.969,87.915,0.27539232]
[1772086141431,0.81148976,87.939,87.905,0.27539232]
[1772086141632,0.81148976,87.939,87.9,9.58585335]
[1772086141947,0.81148976,87.929,87.89,13.27968737]
[1772086142540,11.37294149,87.928,87.891,11.37772923]
[1772086142742,0.81148976,87.927,87.894,3.69383402]
[1772086142938,0.81148976,87.927,87.891,11.37772923]
[1772086144559,0.81148976,87.925,87.894,0.2731029]
[1772086144759,0.81148976,87.925,87.88,0.2]
[1772086144760,0.81148976,87.899,87.88,0.2]
[1772086144941,0.81148976,87.889,87.86,11.38163785]
[1772086145139,0.81148976,87.879,87.848,0.27236458]
[1772086145339,0.81148976,87.869,87.838,11.38459436]
[1772086145653,0.81148976,87.869,87.83,9.58585335]
[1772086145654,0.81148976,87.869,87.833,11.38517735]
[1772086147158,0.81148976,87.914,87.841,0.2709247]
[1772086147458,0.81148976,87.897,87.861,0.2709247]
[1772086147841,0.81148976,87.897,87.86,9.58585335]
[1772086148042,0.81148976,87.889,87.86,9.58585335]
[1772086150543,0.81148976,87.889,87.859,11.3817522]
[1772086150746,0.81148976,87.887,87.85,9.58585335]
[1772086150940,0.81148976,87.869,87.84,9.58585335]
[1772086151146,0.81148976,87.869,87.837,11.3847099]
[1772086151558,0.81148976,87.869,87.84,9.58585335]
[1772086153863,0.81148976,87.867,87.84,9.58585335]
[1772086154073,0.81148976,87.867,87.832,11.38530829]
[1772086154252,0.81148976,87.859,87.825,3.69383402]
[1772086154447,0.81148976,87.859,87.822,11.38666848]
[1772086156170,0.81148976,87.829,87.8,9.58585335]
[1772086157255,0.81148976,87.829,87.797,11.65469643]
[1772086157655,9.58585335,87.84,87.801,0.26414703]
[1772086157854,0.81148976,87.843,87.811,0.26414703]
[1772086158175,0.81148976,87.849,87.813,0.26351077]
[1772086160176,0.81148976,87.849,87.814,11.38770583]
[1772086160362,0.81148976,87.848,87.814,11.38770583]
[1772086161260,0.81148976,87.839,87.814,11.38770583]
[1772086164873,0.81148976,87.849,87.821,0.25930132]
[1772086165453,0.81148976,87.849,87.83,9.58585335]
[1772086165980,0.81148976,87.849,87.821,0.25930132]
[1772086167773,0.81148976,87.849,87.822,11.38666848]
[1772086167975,0.75260778,87.859,87.822,11.38666848]
[1772086168483,0.75260778,87.858,87.823,0.25701707]
[1772086168973,0.75260778,87.858,87.822,11.38666848]
[1772086169159,0.75260778,87.849,87.822,11.38666848]
[1772086169366,0.75260778,87.839,87.815,11.38745422]
[1772086169665,0.75260778,87.839,87.81,11.38811478]
[1772086169962,0.75260778,87.839,87.81,20.97396813]
[1772086170366,0.75260778,87.837,87.805,11.388837]
[1772086170568,11.38459436,87.838,87.791,11.39068925]
[1772086170569,0.75260778,87.819,87.791,11.39068925]
[1772086171679,0.75260778,87.809,87.79,0.2]
[1772086172064,18.54,87.815,87.792,0.25484883]
[1772086172871,0.75260778,87.814,87.791,11.39068925]
[1772086175875,0.75260778,87.814,87.79,0.2]
[1772086177594,0.78022825,87.813,87.79,0.2]
[1772086177775,0.78022825,87.799,87.771,11.39328479]
[1772086178087,0.78022825,87.799,87.766,11.39390088]
[1772086178485,0.78022825,87.799,87.77,11.59340831]
[1772086179799,9.58585335,87.8,87.771,0.25036118]
[1772086179981,0.78022825,87.81,87.781,0.25036118]
[1772086180676,0.78022825,87.81,87.79,9.58585335]
[1772086182288,18.54,87.815,87.792,0.24941623]
[1772086182494,18.54,87.815,87.8,9.58585335]
[1772086183608,18.54,87.815,87.792,0.24941623]
[1772086184385,18.54,87.815,87.793,11.39042976]
[1772086186496,0.78022825,87.814,87.793,11.39042976]
[1772086187401,18.54,87.815,87.795,11.39017028]
[1772086188196,0.78022825,87.814,87.79,3.59078359]
[1772086188499,0.78022825,87.809,87.78,3.59078359]
[1772086189188,0.78022825,87.809,87.781,0.24628437]
[1772086189586,0.78022825,87.809,87.782,11.3918571]
[1772086189900,11.38848396,87.808,87.781,0.24628437]
[1772086190204,0.78022825,87.807,87.781,0.24628437]
[1772086190701,0.78022825,87.807,87.781,11.63820527]
[1772086191499,0.78022825,87.807,87.774,0.24543611]
[1772086191888,0.78022825,87.805,87.78,3.59078359]
[1772086192808,11.38874336,87.806,87.781,0.24502151]
[1772086193306,12.16897161,87.806,87.781,0.24502151]
[1772086193507,0.78022825,87.806,87.781,0.24502151]
[1772086193691,3.59078359,87.81,87.783,0.24461064]
[1772086193887,0.78022825,87.813,87.783,0.24461064]
[1772086195601,0.78022825,87.813,87.78,3.5917108]
[1772086195602,15.25399319,87.815,87.791,0.24379812]
[1772086197409,11.38770583,87.814,87.791,0.24379812]
[1772086197911,0.78695825,87.809,87.784,0.24224012]
[1772086198610,0.78695825,87.809,87.779,11.39212936]
[1772086199904,0.78695825,87.807,87.779,11.39212936]
[1772086200712,0.78695825,87.807,87.78,3.5917108]
[1772086200918,16.04095144,87.815,87.79,3.5917108]
[1772086201098,15.25399319,87.815,87.791,0.24112292]
[1772086201503,15.25399319,87.815,87.8,3.83283372]
[1772086202297,15.25399319,87.815,87.8,15.22195069]
[1772086202504,0.78695825,87.832,87.801,0.2407537]
[1772086202690,0.80416197,87.838,87.81,3.5917108]
[1772086203706,0.80416197,87.838,87.8,11.38948619]
[1772086203707,0.80416197,87.849,87.8,14.98119699]
[1772086203912,0.80416197,87.839,87.81,3.5917108]
[1772086204395,0.80416197,87.839,87.811,11.38809488]
[1772086204594,0.80416197,87.839,87.82,3.5917108]
[1772086205095,0.80416197,87.839,87.811,11.38809488]
[1772086205296,0.80416197,87.837,87.81,3.5917108]
[1772086205513,0.80416197,87.837,87.8,3.5917108]
[1772086208003,0.80416197,87.837,87.801,11.38939192]
[1772086208202,0.80416197,87.835,87.801,11.38939192]
[1772086210516,0.80416197,87.833,87.801,11.38939192]
[1772086213813,0.80416197,87.829,87.79,3.5917108]
[1772086214315,0.80416197,87.829,87.755,45.58095499]
[1772086214316,0.80416197,87.799,87.727,91.19165726]
[1772086214500,0.80416197,87.799,87.77,11.59335065]
[1772086216420,0.80416197,87.799,87.77,15.18506145]
[1772086217512,0.80416197,87.809,87.78,3.5917108]
[1772086218646,0.80416197,87.808,87.775,11.39269731]
[1772086218818,0.80416197,87.799,87.77,0.2]
[1772086219119,0.80416197,87.799,87.77,3.7917108]
[1772086219299,3.5917108,87.81,87.78,3.5917108]
[1772086219300,0.80416197,87.807,87.78,3.5917108]
[1772086222422,0.80416197,87.807,87.781,11.39198687]
[1772086223304,0.80416197,87.807,87.776,11.39254202]
[1772086223845,0.80416197,87.807,87.78,3.5917108]
[1772086224006,28.46309279,87.834,87.79,3.5917108]
[1772086224007,0.80416197,87.832,87.79,3.5917108]
[1772086224211,0.80416197,87.829,87.81,3.5917108]
[1772086224618,0.80416197,87.829,87.811,11.38809488]
[1772086224807,0.80416197,87.842,87.811,11.38809488]
[1772086225723,0.80416197,87.842,87.81,3.5917108]
[1772086227605,0.80416197,87.84,87.81,3.5917108]
[1772086228226,0.80416197,87.84,87.811,11.38809488]
[1772086229128,0.80416197,87.855,87.83,3.5917108]
[1772086230020,0.80416197,87.853,87.83,3.5917108]
[1772086230723,0.80416197,87.839,87.81,3.5917108]
[1772086230910,0.80416197,87.829,87.8,3.5917108]
[1772086233134,0.80416197,87.829,87.801,11.38939192]
[1772086233534,0.80416197,87.809,87.774,11.39276977]
[1772086233931,0.80416197,87.809,87.78,3.5917108]
[1772086235436,0.80416197,87.819,87.79,3.5917108]
[1772086238937,0.80416197,87.817,87.79,3.5917108]
[1772086239123,0.80416197,87.817,87.788,11.39097505]
[1772086239942,0.80416197,87.817,87.79,3.5917108]
[1772086241538,0.80416197,87.817,87.791,11.39068925]
[1772086242536,3.5917108,87.84,87.791,11.39068925]
[1772086242537,0.80416197,87.834,87.8,3.5917108]
[1772086242840,0.80416197,87.834,87.791,39.86741237]
[1772086242841,0.80416197,87.833,87.81,3.5917108]
[1772086244946,0.80416197,87.833,87.778,3.69383402]
[1772086244947,0.80416197,87.858,87.82,3.5917108]
[1772086245148,0.80416197,87.858,87.83,3.5917108]
[1772086246642,0.80416197,87.856,87.83,3.5917108]
[1772086246939,0.80416197,87.849,87.82,3.5917108]
[1772086247326,0.80416197,87.889,87.843,3.69383402]
[1772086247526,3.6917108,87.91,87.88,3.5917108]
[1772086247527,0.80416197,87.899,87.88,3.5917108]
[1772086247728,0.80416197,87.906,87.89,3.5917108]
[1772086248048,0.1,87.9,87.89,3.23392811]
[1772086248425,0.1,87.9,87.89,2.45383606]
[1772086249235,0.80416197,87.906,87.89,9.59602237]
[1772086249435,0.1,87.91,87.89,9.59602237]
[1772086250233,0.1,87.91,87.9,8.7e-07]
[1772086250437,0.1,87.91,87.89,9.59602237]
[1772086251555,0.80416197,87.952,87.903,3.69383402]
[1772086251731,0.80416197,87.952,87.93,9.59602237]
[1772086252441,0.80416197,87.961,87.93,9.59602237]
[1772086252623,0.80416197,87.959,87.93,9.59602237]
[1772086253029,11.3690625,87.958,87.93,9.59602237]
[1772086253243,0.80416197,87.957,87.93,9.59602237]
[1772086253454,0.80416197,87.957,87.92,9.59602237]
[1772086253930,0.80416197,87.949,87.92,9.59602237]
[1772086255239,0.80416197,87.949,87.92,9.58900998]
[1772086255655,0.80416197,87.949,87.93,9.58900998]
[1772086255950,0.80416197,87.958,87.94,9.58900998]
[1772086256446,0.80416197,87.958,87.91,3.69383402]
[1772086256653,0.80416197,87.956,87.93,9.58900998]
[1772086256828,0.80416197,87.956,87.91,3.69383402]
[1772086257035,0.80416197,87.956,87.94,9.58900998]
[1772086258445,12.17255635,87.964,87.94,9.58900998]
[1772086258642,0.80416197,87.963,87.94,9.58900998]
[1772086260660,0.80416197,87.963,87.922,3.69383402]
[1772086260846,0.80416197,87.979,87.95,9.58900998]
[1772086261646,0.80416197,87.978,87.96,9.58900998]
[1772086261854,0.80416197,87.978,87.95,9.58900998]
[1772086262049,0.80416197,87.978,87.926,3.69383402]
[1772086262050,0.80416197,87.978,87.96,9.58900998]
[1772086264163,0.80416197,87.976,87.928,11.37294149]
[1772086264465,0.80416197,87.969,87.94,9.58900998]
[1772086264958,0.80416197,87.959,87.923,11.37353625]
[1772086265264,0.80416197,87.949,87.912,11.37498953]
[1772086265960,0.80416197,87.949,87.91,9.58900998]
[1772086266159,0.80416197,87.947,87.91,9.58900998]
[1772086268554,0.80416197,87.945,87.91,9.58900998]
[1772086269471,0.80416197,87.945,87.911,11.37514076]
[1772086269975,0.80416197,87.945,87.91,9.58900998]